bitfinex-derivatives/quotes_BTCF0:USTF0_20250906
["timestamp","ask_amount","ask_price","bid_price","bid_amount"]
[1757124055405,0.83683,110960.0,110950.0,0.9712856]
[1757124056012,0.83683,110960.0,110950.0,0.6104856]
[1757124072529,0.02143,110960.0,110950.0,0.6104856]
[1757124072735,0.83667,110960.0,110950.0,0.6104856]
[1757124073330,0.02143,110960.0,110950.0,0.6104856]
[1757124073528,0.83667,110960.0,110950.0,0.6104856]
[1757124075930,0.02143,110960.0,110950.0,0.6104856]
[1757124076130,0.83667,110960.0,110950.0,0.6104856]
[1757124077034,0.02143,110960.0,110950.0,0.6104856]
[1757124077223,0.83667,110960.0,110950.0,0.6104856]
[1757124079426,0.83663,110960.0,110950.0,0.6104856]
[1757124089646,0.83663,110960.0,110950.0,0.28867]
[1757124090146,0.83663,110960.0,110950.0,0.6104856]
[1757124091345,0.02143,110960.0,110950.0,0.6104856]
[1757124091748,0.02143,110960.0,110950.0,0.28867]
[1757124091955,0.02143,110960.0,110950.0,0.6104856]
[1757124095358,0.83783,110960.0,110950.0,0.6104856]
[1757124097858,0.83783,110960.0,110950.0,0.28867]
[1757124098059,0.83783,110960.0,110950.0,0.6104856]
[1757124099264,0.83783,110960.0,110950.0,0.3604856]
[1757124115272,0.83783,110960.0,110950.0,0.03867]
[1757124115475,0.83783,110960.0,110950.0,0.3604856]
[1757124117476,0.83783,110960.0,110950.0,0.40072888]
[1757124126789,0.02143,110960.0,110950.0,0.40072888]
[1757124126990,0.83719,110960.0,110950.0,0.40072888]
[1757124128693,0.02143,110960.0,110950.0,0.40072888]
[1757124128991,0.83711,110960.0,110950.0,0.40072888]
[1757124133206,0.83711,110960.0,110950.0,0.03867]
[1757124133406,0.83711,110960.0,110950.0,0.40072888]
[1757124139020,0.83711,110960.0,110950.0,0.48172414]
[1757124140414,0.83711,110960.0,110950.0,0.40072888]
[1757124160327,0.02143,110960.0,110950.0,0.40072888]
[1757124160640,0.38340524,110970.0,110960.0,0.03622]
[1757124160829,0.38320524,110970.0,110960.0,0.39827888]
[1757124161026,0.38320524,110970.0,110960.0,0.47927414]
[1757124161429,1.19860524,110970.0,110960.0,0.39827888]
[1757124161829,0.38320524,110970.0,110960.0,0.39827888]
[1757124162025,0.38320524,110970.0,110960.0,1.10495336]
[1757124162026,0.36193524,110970.0,110960.0,1.10495336]
[1757124162231,0.36293524,110970.0,110960.0,1.10495336]
[1757124163337,0.36293524,110970.0,110960.0,1.18594862]
[1757124163836,0.36293524,110970.0,110960.0,1.19484856]
[1757124164435,0.36293524,110970.0,110960.0,1.1138533]
[1757124173842,0.36293524,110970.0,110960.0,0.38973554]
[1757124174038,0.36293524,110970.0,110960.0,1.1138533]
[1757124177548,0.36293524,110970.0,110960.0,1.033099]
[1757124185350,0.36293524,110970.0,110960.0,0.783099]
[1757124185550,0.36293524,110970.0,110960.0,0.86409426]
[1757124188559,0.36193524,110970.0,110960.0,0.86609426]
[1757124189358,0.36093524,110970.0,110960.0,0.86609426]
[1757124189655,0.36093524,110970.0,110960.0,0.86709426]
[1757124194165,0.36093524,110970.0,110960.0,0.786099]
[1757124197476,0.36093524,110970.0,110960.0,0.86707982]
[1757124201668,0.36093524,110970.0,110960.0,0.86708201]
[1757124202474,0.36093524,110970.0,110960.0,0.786099]
[1757124204874,0.36093524,110970.0,110960.0,0.77719906]
[1757124205074,0.38261524,110970.0,110960.0,0.85896]
[1757124205266,0.38261524,110970.0,110960.0,1.50232346]
[1757124205466,0.36093524,110970.0,110960.0,1.50232346]
[1757124206172,0.36093524,110970.0,110960.0,1.59243906]
[1757124206673,0.36093524,110970.0,110960.0,1.60130465]
[1757124211175,0.36093524,110970.0,110960.0,1.71468087]
[1757124212175,0.36093524,110970.0,110960.0,1.60130465]
[1757124215678,0.36093524,110970.0,110960.0,0.95794119]
[1757124215876,0.36093524,110970.0,110960.0,1.59239906]
[1757124217173,0.36093524,110970.0,110960.0,0.68708346]
[1757124217377,0.38261524,110970.0,110960.0,1.18096173]
[1757124217575,0.38261524,110970.0,110960.0,1.26214116]
[1757124221577,0.38261524,110970.0,110960.0,1.18112173]
[1757124221881,0.39644524,110970.0,110960.0,1.18112173]
[1757124222575,0.39644524,110970.0,110960.0,1.29449795]
[1757124224182,0.39644524,110970.0,110960.0,1.18112173]
[1757124224981,0.38261524,110970.0,110960.0,1.18112173]
[1757124227482,0.38261524,110970.0,110960.0,1.26212195]
[1757124229485,0.38261524,110970.0,110960.0,1.18112173]
[1757124229784,0.38261524,110970.0,110960.0,1.26211916]
[1757124230185,0.38261524,110970.0,110960.0,1.18112173]
[1757124230784,0.38261524,110970.0,110960.0,0.36540173]
[1757124230984,0.64530524,110970.0,110960.0,0.0308]
[1757124231284,0.64530524,110970.0,110960.0,0.11179781]
[1757124231484,0.64530524,110970.0,110960.0,0.0308]
[1757124231782,0.64530524,110970.0,110960.0,0.0075]
[1757124232185,0.64530524,110970.0,110960.0,0.0055]
[1757124233084,0.64530524,110970.0,110960.0,0.0045]
[1757124234086,0.64530524,110970.0,110960.0,0.02595]
[1757124234280,0.64530524,110970.0,110960.0,0.0045]
[1757124235181,0.64530524,110970.0,110960.0,0.02595]
[1757124237188,0.96698697,110970.0,110960.0,0.0045]
[1757124237685,0.64530524,110970.0,110960.0,0.0045]
[1757124239689,1.00734652,110970.0,110960.0,0.36654128]
[1757124240388,0.64530524,110970.0,110960.0,0.36654128]
[1757124240687,1.00734652,110970.0,110960.0,0.36654128]
[1757124240987,1.00734652,110970.0,110960.0,0.38799128]
[1757124246791,1.46162524,110970.0,110960.0,0.38799128]
[1757124246979,1.82366652,110970.0,110960.0,0.36654128]
[1757124247183,1.82366652,110970.0,110960.0,0.0045]
[1757124247386,1.82366652,110970.0,110960.0,0.38799128]
[1757124253293,1.82366652,110970.0,110960.0,0.02595]
[1757124253490,1.82366652,110970.0,110960.0,0.0045]
[1757124253795,1.82366652,110970.0,110960.0,0.36654128]
[1757124254094,1.82366652,110970.0,110960.0,0.38799128]
[1757124260703,1.82366652,110970.0,110960.0,0.02595]
[1757124261000,1.82366652,110970.0,110960.0,0.38799128]
[1757124267201,1.82366652,110970.0,110960.0,0.02595]
[1757124267402,1.82366652,110970.0,110960.0,0.38799128]
[1757124278613,1.00734652,110970.0,110960.0,0.38799128]
[1757124278913,1.82330652,110970.0,110960.0,0.38799128]
[1757124279413,1.57330652,110970.0,110960.0,0.38799128]
[1757124280310,1.57330652,110970.0,110960.0,0.0045]
[1757124285114,1.9353478,110970.0,110960.0,0.0045]
[1757124286018,2.1853478,110970.0,110960.0,0.0045]
[1757124286220,2.20742495,110970.0,110960.0,0.0045]
[1757124286714,2.1853478,110970.0,110960.0,0.0045]
[1757124286910,2.20742497,110970.0,110940.0,0.72284128]
[1757124287114,0.39777128,110950.0,110940.0,0.74398128]
[1757124287314,1.21381128,110950.0,110940.0,0.74398128]
[1757124287819,1.28615375,110950.0,110940.0,0.74398128]
[1757124288013,1.28615375,110950.0,110940.0,0.38194]
[1757124288213,1.28615375,110950.0,110940.0,0.3608]
[1757124288419,1.28615375,110950.0,110940.0,0.3638]
[1757124290513,1.28615375,110950.0,110940.0,0.3658]
[1757124293224,0.47011375,110950.0,110940.0,0.3658]
[1757124293427,1.28739375,110950.0,110940.0,0.3658]
[1757124293724,0.47011375,110950.0,110940.0,0.3658]
[1757124293914,1.28735375,110950.0,110940.0,0.3658]
[1757124295710,0.47011375,110950.0,110940.0,0.3658]
[1757124296022,1.28735375,110950.0,110940.0,0.3658]
[1757124299530,1.24731596,110950.0,110940.0,0.3658]
[1757124304320,1.49731596,110950.0,110940.0,0.3658]
[1757124306929,1.24731596,110950.0,110940.0,0.3658]
[1757124307130,1.24731596,110950.0,110940.0,0.3588]
[1757124307525,1.26966303,110950.0,110940.0,0.3588]
[1757124309124,1.26966303,110950.0,110940.0,0.3308]
[1757124309330,1.26966303,110950.0,110940.0,0.3238]
[1757124309835,1.26966303,110950.0,110940.0,0.3168]
[1757124310028,1.51966303,110950.0,110940.0,0.30635]
[1757124310531,0.70242303,110950.0,110940.0,0.30635]
[1757124310733,1.51982303,110950.0,110940.0,0.30635]
[1757124313232,1.49747596,110950.0,110940.0,0.30635]
[1757124313442,1.51984219,110950.0,110940.0,0.30635]
[1757124316138,1.51964219,110950.0,110940.0,0.30635]
[1757124317342,1.51964219,110950.0,110940.0,0.30435]
[1757124317538,1.51964219,110950.0,110940.0,0.30535]
[1757124317739,1.51960219,110950.0,110940.0,0.30435]
[1757124318634,1.52000219,110950.0,110940.0,0.30435]
[1757124319634,0.70244219,110950.0,110940.0,0.30435]
[1757124319839,1.52016219,110950.0,110940.0,0.30435]
[1757124320842,0.70244219,110950.0,110940.0,0.30435]
[1757124321044,1.52012219,110950.0,110940.0,0.30435]
[1757124321844,1.52004219,110950.0,110940.0,0.30435]
[1757124322743,1.52012219,110950.0,110940.0,0.30435]
[1757124323843,1.56877502,110950.0,110940.0,0.30435]
[1757124325944,1.52012219,110950.0,110940.0,0.30435]
[1757124326342,1.52008219,110950.0,110940.0,0.30435]
[1757124328246,0.70244219,110950.0,110940.0,0.30435]
[1757124328445,1.51988219,110950.0,110940.0,0.30435]
[1757124330247,0.70244219,110950.0,110940.0,0.30435]
[1757124330450,1.51980219,110950.0,110940.0,0.30435]
[1757124339356,1.26980219,110950.0,110940.0,0.30435]
[1757124342652,1.25578219,110950.0,110940.0,0.30435]
[1757124342859,1.25578219,110950.0,110940.0,0.33893]
[1757124343160,1.25578219,110950.0,110940.0,0.31714]
[1757124344359,1.25578219,110950.0,110940.0,0.30435]
[1757124350860,0.9337787,110950.0,110940.0,0.30435]
[1757124351060,1.25578219,110950.0,110940.0,0.30435]
[1757124351261,0.43890219,110950.0,110940.0,0.30435]
[1757124351463,1.25566219,110950.0,110940.0,0.33954]
[1757124355263,1.25566219,110950.0,110940.0,0.31745]
[1757124357167,1.25566219,110950.0,110940.0,0.33954]
[1757124357767,1.25566219,110950.0,110940.0,0.31745]
[1757124360361,1.25566219,110950.0,110940.0,0.30435]
[1757124361469,1.29594076,110950.0,110940.0,0.30435]
[1757124370873,1.29594076,110950.0,110940.0,0.30738]
[1757124386690,1.29643371,110950.0,110940.0,0.30738]
[1757124412102,1.65871577,110950.0,110940.0,1e-08]
[1757124412304,1.65871577,110950.0,110930.0,0.37359]
[1757124412603,0.72456412,110940.0,110930.0,0.37359]
[1757124412805,0.7474233,110940.0,110930.0,0.37359]
[1757124413503,0.7474233,110940.0,110930.0,0.37559]
[1757124414300,0.7474233,110940.0,110930.0,0.37459]
[1757124414501,0.7474233,110940.0,110930.0,0.37759]
[1757124414701,0.7474233,110940.0,110930.0,0.37659]
[1757124414903,0.7474233,110940.0,110930.0,0.37859]
[1757124415302,0.75658686,110940.0,110930.0,0.37859]
[1757124418710,0.75658686,110940.0,110930.0,0.40053]
[1757124421416,0.35409348,110940.0,110930.0,0.40053]
[1757124424625,0.03202274,110940.0,110930.0,0.40053]
[1757124424824,1.17029348,110940.0,110930.0,0.40053]
[1757124425424,0.35409348,110940.0,110930.0,0.40053]
[1757124425623,1.17029348,110940.0,110930.0,0.40053]
[1757124426124,0.84822274,110940.0,110930.0,0.40053]
[1757124426324,1.17029348,110940.0,110930.0,0.40053]
[1757124430233,1.17029137,110940.0,110930.0,0.40053]
[1757124437636,0.35409137,110940.0,110930.0,0.40053]
[1757124437836,1.17041137,110940.0,110930.0,0.40053]
[1757124442044,0.03202063,110940.0,110930.0,0.40053]
[1757124442338,1.17025137,110940.0,110930.0,0.40053]
[1757124442633,0.35409137,110940.0,110930.0,0.40053]
[1757124442841,0.84838063,110940.0,110930.0,0.40053]
[1757124443440,1.17045137,110940.0,110930.0,0.40053]
[1757124444842,0.35409137,110940.0,110930.0,0.40053]
[1757124445034,1.17045137,110940.0,110930.0,0.40053]
[1757124445442,1.17045191,110940.0,110930.0,0.40053]
[1757124449944,0.03202117,110940.0,110930.0,0.40053]
[1757124450144,1.1482343,110940.0,110930.0,0.40053]
[1757124451943,1.17105003,110940.0,110930.0,0.40053]
[1757124454753,0.84897929,110940.0,110930.0,0.40053]
[1757124455045,0.82592356,110940.0,110930.0,0.97260074]
[1757124456254,0.00916356,110940.0,110930.0,0.97260074]
[1757124456443,0.81672,110940.0,110930.0,0.97260074]
[1757124458252,0.8992637,110950.0,110930.0,0.97260074]
[1757124458450,0.8992637,110950.0,110940.0,0.03642]
[1757124458650,0.8990637,110950.0,110940.0,0.03642]
[1757124460949,0.8990637,110950.0,110940.0,0.03742]
[1757124462752,0.8988637,110950.0,110940.0,0.03742]
[1757124463354,1.22093444,110950.0,110940.0,0.03742]
[1757124463749,0.8988637,110950.0,110940.0,0.03742]
[1757124481464,1.26102659,110950.0,110940.0,0.39958289]
[1757124486866,1.62318948,110950.0,110940.0,0.001]
[1757124487066,1.64596951,110950.0,110940.0,0.001]
[1757124487467,1.28380662,110950.0,110940.0,0.001]
[1757124487864,1.53380662,110950.0,110940.0,0.001]
[1757124488069,1.89596951,110950.0,110940.0,0.001]
[1757124490062,1.17164373,110950.0,110940.0,0.001]
[1757124490370,1.89596951,110950.0,110940.0,0.001]
[1757124493565,1.89596951,110950.0,110940.0,0.0055]
[1757124502474,1.89596951,110950.0,110930.0,0.3553]
[1757124502673,0.72432578,110940.0,110930.0,0.3553]
[1757124502869,0.74710581,110940.0,110930.0,0.3553]
[1757124503174,1.57518581,110940.0,110930.0,0.3553]
[1757124503475,3.31786581,110940.0,110930.0,0.3553]
[1757124503678,3.32286581,110940.0,110930.0,0.3553]
[1757124503876,3.32286581,110940.0,110930.0,0.3563]
[1757124505082,3.32486581,110940.0,110930.0,0.15645488]
[1757124505582,3.32186581,110940.0,110930.0,0.15645488]
[1757124505780,2.49378581,110940.0,110930.0,0.15645488]
[1757124505982,3.32170581,110940.0,110930.0,0.15645488]
[1757124506984,3.68170581,110940.0,110930.0,0.15645488]
[1757124508585,2.85378581,110940.0,110930.0,0.15645488]
[1757124508882,3.48134581,110940.0,110930.0,0.19264488]
[1757124509084,2.81378581,110940.0,110930.0,0.44264488]
[1757124509281,3.42146581,110940.0,110930.0,0.44264488]
[1757124509480,2.23162292,110940.0,110930.0,0.44264488]
[1757124509685,3.05930292,110940.0,110930.0,0.44264488]
[1757124510286,3.05938292,110940.0,110930.0,0.44264488]
[1757124510490,3.03660289,110940.0,110930.0,0.44264488]
[1757124511183,2.93660289,110940.0,110930.0,0.44264488]
[1757124512190,2.95957566,110940.0,110930.0,0.44264488]
[1757124513093,1.21689566,110940.0,110930.0,0.44264488]
[1757124514196,1.21690004,110940.0,110930.0,0.44264488]
[1757124519302,1.21690004,110940.0,110930.0,0.19264488]
[1757124522101,1.57906293,110940.0,110930.0,0.19264488]
[1757124523103,0.85473715,110940.0,110930.0,0.19264488]
[1757124523303,1.57746293,110940.0,110930.0,0.19264488]
[1757124523499,1.21530004,110940.0,110930.0,0.19264488]
[1757124529401,0.38914004,110940.0,110930.0,0.19264488]
[1757124529600,1.21474004,110940.0,110930.0,0.19264488]
[1757124534014,1.19176289,110940.0,110930.0,0.19264488]
[1757124534310,1.21477192,110940.0,110930.0,0.19264488]
[1757124536206,0.38917192,110940.0,110930.0,0.19264488]
[1757124536406,1.21397192,110940.0,110930.0,0.19264488]
[1757124537206,0.38917192,110940.0,110930.0,0.19264488]
[1757124537407,1.21389192,110940.0,110930.0,0.19264488]
[1757124539407,0.38917192,110940.0,110930.0,0.19264488]
[1757124539610,0.38917192,110940.0,110930.0,0.55480777]
[1757124539808,1.21365192,110940.0,110930.0,0.55480777]
[1757124540113,1.21365192,110940.0,110930.0,0.19264488]
[1757124540312,0.38917192,110940.0,110930.0,0.44264488]
[1757124540508,1.21361192,110940.0,110930.0,0.44264488]
[1757124540707,0.02700903,110940.0,110930.0,0.80480777]
[1757124540913,0.85152903,110940.0,110930.0,0.80480777]
[1757124541113,0.82852,110940.0,110930.0,0.80480777]
[1757124542507,1.18868289,110940.0,110930.0,0.80480777]
[1757124542812,1.18768289,110940.0,110930.0,0.80480777]
[1757124543013,1.18968289,110940.0,110930.0,0.80480777]
[1757124543514,0.82752,110940.0,110930.0,0.44264488]
[1757124543711,0.82652,110940.0,110930.0,0.44264488]
[1757124547314,1.14848299,110940.0,110930.0,0.44264488]
[1757124549812,0.32396299,110940.0,110930.0,0.44264488]
[1757124550015,1.14800299,110940.0,110930.0,0.44264488]
[1757124550320,0.82604,110940.0,110930.0,0.44264488]
[1757124550615,1.14800299,110940.0,110930.0,0.44264488]
[1757124551712,1.14800299,110940.0,110930.0,0.19264488]
[1757124552416,1.14760299,110940.0,110930.0,0.19264488]
[1757124554518,1.17060977,110940.0,110930.0,0.19264488]
[1757124555918,0.34696977,110940.0,110930.0,0.19264488]
[1757124556113,1.17028977,110940.0,110930.0,0.19264488]
[1757124557120,0.34696977,110940.0,110930.0,0.19264488]
[1757124557323,1.17032977,110940.0,110930.0,0.19264488]
[1757124557522,1.17032977,110940.0,110930.0,0.19714488]
[1757124558118,0.84836678,110940.0,110930.0,0.19714488]
[1757124558319,1.17032977,110940.0,110930.0,0.19714488]
[1757124559722,1.17000977,110940.0,110930.0,0.19714488]
[1757124561128,1.16996977,110940.0,110930.0,0.19714488]
[1757124564024,1.14696299,110940.0,110930.0,0.19714488]
[1757124565228,0.32396299,110940.0,110930.0,0.19714488]
[1757124565428,1.14656299,110940.0,110930.0,0.19714488]
[1757124566224,0.32396299,110940.0,110930.0,0.19714488]
[1757124566433,1.14648299,110940.0,110930.0,0.19714488]
[1757124574033,1.16947466,110940.0,110930.0,0.19714488]
[1757124574340,0.34695466,110940.0,110930.0,0.19714488]
[1757124574637,0.002,110940.0,110930.0,0.19714488]
[1757124574935,0.82376,110940.0,110930.0,0.19714488]
[1757124575836,0.002,110940.0,110930.0,0.19714488]
[1757124576037,0.82376,110940.0,110930.0,0.19714488]
[1757124578734,0.002,110940.0,110930.0,0.19714488]
[1757124578934,0.82416,110940.0,110930.0,0.19714488]
[1757124579738,0.002,110940.0,110930.0,0.19714488]
[1757124579938,0.82412,110940.0,110930.0,0.19714488]
[1757124583332,1.14608299,110940.0,110930.0,0.19714488]
[1757124594150,1.16907371,110940.0,110930.0,0.19714488]
[1757124603450,1.20940296,110940.0,110930.0,0.19714488]
[1757124603751,1.5716952,110940.0,110930.0,0.19714488]
[1757124604052,1.54870448,110940.0,110930.0,0.19714488]
[1757124607249,1.54870448,110940.0,110930.0,0.17464488]
[1757124607461,1.57169823,110940.0,110930.0,0.17464488]
[1757124607756,1.57169823,110940.0,110930.0,0.19715488]
[1757124609159,1.82169823,110940.0,110930.0,0.19715488]
[1757124609353,1.82169823,110940.0,110930.0,0.17464488]
[1757124609654,1.82169823,110940.0,110930.0,0.16095488]
[1757124612860,1.09711375,110940.0,110930.0,0.19676488]
[1757124613062,0.99957823,110940.0,110930.0,0.19676488]
[1757124613256,1.81989823,110940.0,110930.0,0.19676488]
[1757124613660,0.99957823,110940.0,110930.0,0.19676488]
[1757124613860,1.81973823,110940.0,110930.0,0.19676488]
[1757124614556,0.99957823,110940.0,110930.0,0.19676488]
[1757124614762,1.81973823,110940.0,110930.0,0.19676488]
[1757124620372,1.81973823,110940.0,110930.0,0.16095488]
[1757124623373,1.81973823,110940.0,110930.0,0.17473488]
[1757124625877,1.81973823,110940.0,110930.0,0.19757488]
[1757124627776,1.81973823,110940.0,110930.0,0.17473488]
[1757124627973,1.81973823,110940.0,110930.0,0.16095488]
[1757124639290,1.56973823,110940.0,110930.0,0.16095488]
[1757124643994,0.74957823,110940.0,110930.0,0.16095488]
[1757124644192,1.56861823,110940.0,110930.0,0.16095488]
[1757124655704,1.56857823,110940.0,110930.0,0.16095488]
[1757124663306,1.56860607,110940.0,110930.0,0.16095488]
[1757124665401,1.20631383,110940.0,110930.0,0.16095488]
[1757124665599,1.16616101,110940.0,110930.0,0.16095488]
[1757124665801,1.16612101,110940.0,110930.0,0.16095488]
[1757124673017,1.16612477,110940.0,110930.0,0.16095488]
[1757124696334,1.16600477,110940.0,110930.0,0.16095488]
[1757124703543,1.16600477,110940.0,110930.0,0.11869321]
[1757124705643,1.16600477,110940.0,110930.0,0.03455773]
[1757124707344,1.48814419,110940.0,110920.0,0.0045]
[1757124707642,0.0208,110910.0,110890.0,0.01378]
[1757124707838,0.0208,110910.0,110890.0,0.03603]
[1757124707839,1.16267942,110900.0,110890.0,0.03603]
[1757124708344,1.1857151,110900.0,110890.0,0.03603]
[1757124708748,1.1857151,110900.0,110890.0,0.03803]
[1757124710038,1.1857151,110900.0,110890.0,0.04103]
[1757124710234,1.1857151,110900.0,110890.0,0.04303]
[1757124710445,1.16267942,110900.0,110890.0,0.04303]
[1757124710645,1.16267942,110900.0,110890.0,0.007]
[1757124710844,1.18568255,110900.0,110890.0,0.007]
[1757124711243,1.18568255,110900.0,110890.0,0.257]
[1757124712139,1.18568255,110900.0,110890.0,0.007]
[1757124712646,0.36684255,110900.0,110890.0,0.007]
[1757124712845,1.18572255,110900.0,110890.0,0.007]
[1757124713044,1.18572255,110900.0,110890.0,0.004]
[1757124713346,1.18572255,110900.0,110880.0,0.01269]
[1757124713538,0.34383942,110890.0,110880.0,0.03494]
[1757124715439,0.34383942,110890.0,110880.0,0.03594]
[1757124716447,0.34383942,110890.0,110880.0,0.03694]
[1757124716448,1.16279942,110890.0,110880.0,0.03694]
[1757124717146,0.34383942,110890.0,110880.0,0.03694]
[1757124717346,1.16279942,110890.0,110880.0,0.03694]
[1757124718746,0.34383942,110890.0,110880.0,0.03694]
[1757124718946,1.16283942,110890.0,110880.0,0.03694]
[1757124719144,1.23450688,110890.0,110880.0,0.03694]
[1757124721249,1.24128688,110890.0,110880.0,0.002]
[1757124722948,1.24128688,110890.0,110880.0,0.02425]
[1757124725249,1.24128688,110890.0,110880.0,0.002]
[1757124725548,1.24128688,110890.0,110880.0,0.02425]
[1757124726448,1.23450688,110890.0,110880.0,0.02425]
[1757124726650,1.23450688,110890.0,110880.0,0.03694]
[1757124726849,0.41550688,110890.0,110880.0,0.03694]
[1757124727048,1.23494688,110890.0,110880.0,0.03694]
[1757124727249,1.25792652,110890.0,110880.0,0.03694]
[1757124727450,1.6611808,110890.0,110880.0,0.03694]
[1757124728449,0.8417408,110890.0,110880.0,0.03694]
[1757124728650,1.6613008,110890.0,110880.0,0.03694]
[1757124741659,1.63832116,110890.0,110880.0,0.03694]
[1757124741956,1.66139626,110890.0,110880.0,0.03694]
[1757124743660,0.84183626,110890.0,110880.0,0.03694]
[1757124743959,1.66219626,110890.0,110880.0,0.03694]
[1757124748866,0.11644256,110890.0,110880.0,0.03694]
[1757124749070,1.29925941,110890.0,110880.0,0.03694]
[1757124751968,0.93656256,110890.0,110880.0,0.03694]
[1757124752170,1.29925941,110890.0,110880.0,0.03694]
[1757124753565,0.93656256,110890.0,110880.0,0.03694]
[1757124753868,1.29925941,110890.0,110880.0,0.03694]
[1757124758574,0.11644256,110890.0,110880.0,0.03694]
[1757124758768,1.30001941,110890.0,110880.0,0.03694]
[1757124773588,1.30001941,110890.0,110880.0,0.04144]
[1757124776891,0.11644256,110890.0,110880.0,0.04144]
[1757124777090,1.29933941,110890.0,110880.0,0.04144]
[1757124785798,0.93664256,110890.0,110880.0,0.04144]
[1757124786098,1.29933941,110890.0,110880.0,0.04144]
[1757124787497,1.25898392,110890.0,110880.0,0.04144]
[1757124789501,0.43878392,110890.0,110880.0,0.04144]
[1757124789798,1.26198392,110890.0,110880.0,0.04144]
[1757124799804,0.93964256,110890.0,110880.0,0.04144]
[1757124800004,1.26198392,110890.0,110880.0,0.04144]
[1757124800403,0.43878392,110890.0,110880.0,0.04144]
[1757124800908,1.26182392,110890.0,110880.0,0.04144]
[1757124802412,0.43878392,110890.0,110880.0,0.04144]
[1757124802711,1.26166392,110890.0,110880.0,0.04144]
[1757124803611,1.26158392,110890.0,110880.0,0.04144]
[1757124804319,0.43878392,110890.0,110880.0,0.04144]
[1757124804508,1.26138641,110890.0,110880.0,0.04144]
[1757124826126,0.43862641,110890.0,110880.0,0.04144]
[1757124826429,1.25978641,110890.0,110880.0,0.04144]
[1757124830831,0.93744505,110890.0,110880.0,0.04144]
[1757124831032,1.25978641,110890.0,110880.0,0.04144]
[1757124838843,0.93744505,110890.0,110880.0,0.04144]
[1757124839041,1.25978641,110890.0,110880.0,0.04144]
[1757124841443,0.93744505,110890.0,110880.0,0.04144]
[1757124841639,1.25978641,110890.0,110880.0,0.04144]
[1757124842038,0.93744505,110890.0,110880.0,0.04144]
[1757124842238,1.25978641,110890.0,110880.0,0.04144]
[1757124849450,1.30006806,110890.0,110880.0,0.04144]
[1757124858059,1.30006806,110890.0,110880.0,0.01919]
[1757124858254,1.30006806,110890.0,110880.0,0.0065]
[1757124859759,1.30006806,110890.0,110880.0,0.02899]
[1757124868266,1.30006806,110890.0,110880.0,0.04259]
[1757124871663,0.93744505,110890.0,110880.0,0.04259]
[1757124871869,1.30006806,110890.0,110880.0,0.04259]
[1757124880079,0.93744505,110890.0,110880.0,0.04259]
[1757124880373,1.30006806,110890.0,110880.0,0.04259]
[1757124881376,1.29878806,110890.0,110880.0,0.04259]
[1757124891078,1.66141107,110890.0,110880.0,0.0065]
[1757124891370,1.29878806,110890.0,110880.0,0.02876]
[1757124894380,1.29878806,110890.0,110880.0,0.04238]
[1757124899480,1.30162806,110890.0,110880.0,0.04238]
[1757124900181,0.47890806,110890.0,110880.0,0.04238]
[1757124900387,1.30158806,110890.0,110880.0,0.40500301]
[1757124902086,0.47890806,110890.0,110880.0,0.40500301]
[1757124902292,1.30202806,110890.0,110880.0,0.40500301]
[1757124902592,1.30186806,110890.0,110880.0,0.40500301]
[1757124902988,0.93924505,110890.0,110880.0,0.40500301]
[1757124903285,1.30186806,110890.0,110880.0,0.40500301]
[1757124905614,0.47890806,110890.0,110880.0,0.40500301]
[1757124905894,1.27875047,110890.0,110880.0,0.40500301]
[1757124906698,0.45599047,110890.0,110880.0,0.40500301]
[1757124906899,1.27887047,110890.0,110880.0,0.40500301]
[1757124907999,1.27887047,110890.0,110880.0,0.04238]
[1757124911593,1.23854381,110890.0,110880.0,0.04238]
[1757124914297,1.26138954,110890.0,110880.0,0.0065]
[1757124920609,1.51138954,110890.0,110880.0,0.0065]
[1757124921510,1.51454954,110890.0,110880.0,0.0065]
[1757124921809,1.51454954,110890.0,110880.0,0.02781]
[1757124922006,1.51454954,110890.0,110880.0,0.0065]
[1757124932008,1.51398954,110890.0,110880.0,0.0065]
[1757124932214,1.51398954,110890.0,110880.0,0.02781]
[1757124933919,1.51390954,110890.0,110880.0,0.02781]
[1757124935219,1.51390954,110890.0,110880.0,0.04157]
[1757124935723,0.68850954,110890.0,110880.0,0.04157]
[1757124935915,1.51390954,110890.0,110880.0,0.04157]
[1757124937723,0.68850954,110890.0,110880.0,0.04157]
[1757124937925,0.43850954,110890.0,110880.0,0.04157]
[1757124938125,1.26406954,110890.0,110880.0,0.04157]
[1757124941024,0.43850954,110890.0,110880.0,0.04157]
[1757124941227,1.26398954,110890.0,110880.0,0.04157]
[1757124946726,1.26398954,110890.0,110880.0,0.0065]
[1757124951647,1.26398954,110890.0,110880.0,0.02808]
[1757124954342,1.26398954,110890.0,110880.0,0.0065]
[1757124966654,1.26538954,110890.0,110880.0,0.0065]
[1757124973464,1.66851309,110890.0,110880.0,0.0065]
[1757125004310,1.71716592,110890.0,110880.0,0.0065]
[1757125006706,0.99174602,110890.0,110880.0,0.0065]
[1757125007007,1.71716592,110890.0,110880.0,0.0065]
[1757125007906,1.30196314,110890.0,110880.0,0.04064]
[1757125012906,0.11621319,110890.0,110880.0,0.04064]
[1757125013211,0.47892314,110890.0,110880.0,0.65334995]
[1757125013510,1.30164314,110890.0,110880.0,0.29064]
[1757125014711,1.30160314,110890.0,110880.0,0.29064]
[1757125015018,1.30156314,110890.0,110880.0,0.29064]
[1757125016712,0.47892314,110890.0,110880.0,0.29064]
[1757125016911,1.30136314,110890.0,110880.0,0.29064]
[1757125019714,0.47892314,110890.0,110880.0,0.29064]
[1757125020015,1.30112314,110890.0,110880.0,0.29064]
[1757125020316,0.47892314,110890.0,110880.0,0.04064]
[1757125020516,1.30108314,110890.0,110880.0,0.04064]
[1757125023317,1.27823741,110890.0,110880.0,0.04064]
[1757125023518,1.30093736,110890.0,110880.0,0.04064]
[1757125025618,1.27823741,110890.0,110880.0,0.04064]
[1757125028220,1.30093641,110890.0,110880.0,0.04064]
[1757125033423,1.26053614,110890.0,110880.0,0.04064]
[1757125034224,0.93822646,110890.0,110880.0,0.04064]
[1757125034428,1.26053614,110890.0,110880.0,0.04064]
[1757125035822,0.93822646,110890.0,110880.0,0.04064]
[1757125036132,1.26053614,110890.0,110880.0,0.04064]
[1757125040029,1.26053614,110890.0,110880.0,0.0065]
[1757125043928,0.43837614,110890.0,110880.0,0.0065]
[1757125044128,1.25993614,110890.0,110880.0,0.02931]
[1757125047838,1.25993614,110890.0,110880.0,0.0065]
[1757125054533,1.26021614,110890.0,110880.0,0.0065]
[1757125054944,0.43837614,110890.0,110880.0,0.02931]
[1757125055145,1.26017614,110890.0,110880.0,0.02931]